fUST/lending_fUST_20250107
["ID","MTS","AMOUNT","RATE_DAILY","PERIOD"]
[347898589,1736188243189,-500.0,0.00019178,2]
[347898590,1736188243198,-589.88,0.00019178,2]
[347898591,1736188243208,-500.0,0.00019178,2]
[347898592,1736188243217,-500.0,0.00019178,2]
[347898593,1736188243227,-500.0,0.00019178,2]
[347898594,1736188243236,-578.87,0.00019178,2]
[347898595,1736188243246,-585.4775556,0.00019178,2]
[347898596,1736188243255,-542.56,0.00019178,2]
[347898597,1736188243264,-729.1,0.00019178,2]
[347898598,1736188243274,-500.0,0.00019178,2]
[347898599,1736188243283,-500.0,0.00019178,2]
[347898600,1736188243293,-871.36,0.00019178,2]
[347898601,1736188243303,-500.0,0.00019178,2]
[347898602,1736188243313,-500.0,0.00019178,2]
[347898603,1736188243322,-500.0,0.00019178,2]
[347898604,1736188243332,-500.0,0.00019178,2]
[347898605,1736188243341,-2816.27,0.00019178,2]
[347898606,1736188243351,-500.0,0.00019178,2]
[347898607,1736188243360,-500.0,0.00019178,2]
[347898608,1736188243370,-500.0,0.00019178,2]
[347898609,1736188243379,-500.0,0.00019178,2]
[347898610,1736188243390,-7075.65,0.00019178,2]
[347898611,1736188243399,-500.0,0.00019178,2]
[347898612,1736188243409,-165.886679,0.00019178,2]
[347898613,1736188243418,-5276.89206034,0.0001925,2]
[347898614,1736188243428,-102492.20837012,0.0001925,2]
[347898615,1736188243438,-641431.32952889,0.0001925,5]
[347898616,1736188243613,-49511.76184973,0.0001925,5]
[347898617,1736188243727,-3548.99252683,0.0001925,5]
[347898618,1736188243738,-2975.0,0.0001925,5]
[347898619,1736188243752,-2150.6029154,0.0001925,5]
[347898620,1736188243764,-31240.96343417,0.0001925,5]
[347898621,1736188243775,-534.7219067,0.0001925,5]
[347898622,1736188243787,-38073.09533651,0.0001925,5]
[347898623,1736188243799,-9491.57556819,0.0001925,5]
[347898625,1736188243887,-11244.41248225,0.0001925,5]
[347898626,1736188243899,-260.23393737,0.0001925,5]
[347898627,1736188243910,-459.72176269,0.0001925,5]
[347898628,1736188243922,-1019.4,0.0001925,5]
[347898629,1736188243973,-852.46150135,0.0001925,5]
[347898630,1736188243987,-4639.22232667,0.0001925,5]
[347898631,1736188243999,-20094.0,0.0001925,5]
[347898632,1736188244012,-1927.68703323,0.0001925,5]
[347898633,1736188244024,-5097.499,0.0001925,5]
[347898652,1736188245874,-500.0,0.00019178,2]
[347898653,1736188245884,-2658.06551847,0.0001925,5]
[347898654,1736188245896,-1032.54940778,0.0001925,5]
[347898655,1736188245907,-13256.9704,0.0001925,5]
[347898669,1736188571491,159.214377,0.00013973,2]
[347898670,1736188835856,5729.62036927,0.00015,2]
[347898714,1736189244115,-300.0,0.00016699,2]
[347898715,1736189244141,-304.95441717,0.00016699,2]
[347898717,1736189248171,-177.89019453,0.00016699,2]
[347898718,1736189250161,-646.62388848,0.00016699,2]
[347898949,1736189348136,-592.99309612,0.00016367,2]
[347898950,1736189348157,-592.99309612,0.00016532,2]
[347898951,1736189348176,-300.0,0.00016697,2]
[347898952,1736189348195,-89679.52751976,0.00016697,2]
[347898968,1736189350134,-60322.47248024,0.00016697,2]
[347898969,1736189350156,-306.27353121,0.00016698,2]
[347898970,1736189350177,-500.0,0.00016698,2]
[347898971,1736189350199,-500.0,0.00016698,2]
[347898972,1736189350220,-621.16456935,0.00016698,2]
[347898973,1736189350241,-500.0,0.00016698,2]
[347898974,1736189350269,-500.0,0.00016698,2]
[347898975,1736189350294,-500.0,0.00016698,2]
[347898976,1736189350319,-500.0,0.00016698,2]
[347898977,1736189350342,-500.0,0.00016698,2]
[347898978,1736189350364,-500.0,0.00016698,2]
[347898979,1736189350385,-500.0,0.00016698,2]
[347898980,1736189350409,-500.0,0.00016698,2]
[347898981,1736189350432,-500.0,0.00016698,2]
[347898982,1736189350455,-500.0,0.00016698,2]
[347898983,1736189350477,-500.0,0.00016698,2]
[347898984,1736189350500,-500.0,0.00016698,2]
[347898985,1736189350529,-500.0,0.00016698,2]
[347898986,1736189350553,-500.0,0.00016698,2]
[347898987,1736189350576,-500.0,0.00016698,2]
[347898988,1736189350598,-617.31011368,0.00016698,2]
[347898989,1736189350621,-500.0,0.00016698,2]
[347898990,1736189350644,-500.0,0.00016698,2]
[347898991,1736189350666,-254.27469172,0.00016698,2]
[347898992,1736189350688,-217.04319794,0.00016698,2]
[347898993,1736189350710,-500.0,0.00016698,2]
[347898994,1736189350732,-500.0,0.00016698,2]
[347898995,1736189350753,-500.0,0.00016698,2]
[347898996,1736189350779,-500.0,0.00016698,2]
[347898997,1736189350800,-500.0,0.00016698,2]
[347898998,1736189350825,-500.0,0.00016698,2]
[347898999,1736189350847,-500.0,0.00016698,2]
[347899000,1736189350870,-500.0,0.00016698,2]
[347899001,1736189350892,-500.0,0.00016698,2]
[347899002,1736189350913,-500.0,0.00016698,2]
[347899003,1736189350935,-500.0,0.00016698,2]
[347899004,1736189350956,-500.0,0.00016698,2]
[347899005,1736189350978,-500.0,0.00016698,2]
[347899006,1736189351000,-500.0,0.00016698,2]
[347899007,1736189351025,-500.0,0.00016698,2]
[347899008,1736189351047,-500.0,0.00016698,2]
[347899009,1736189351069,-500.0,0.00016698,2]
[347899010,1736189351091,-500.0,0.00016698,2]
[347899011,1736189351113,-500.0,0.00016698,2]
[347899012,1736189351135,-500.0,0.00016698,2]
[347899013,1736189351157,-500.0,0.00016698,2]
[347899014,1736189351178,-500.0,0.00016698,2]
[347899015,1736189351200,-500.0,0.00016698,2]
[347899016,1736189351222,-500.0,0.00016698,2]
[347899017,1736189351244,-500.0,0.00016698,2]
[347899018,1736189351268,-500.0,0.00016698,2]
[347899019,1736189351293,-500.0,0.00016698,2]
[347899020,1736189351317,-500.0,0.00016698,2]
[347899021,1736189351340,-500.0,0.00016698,2]
[347899022,1736189351364,-500.0,0.00016698,2]
[347899023,1736189351388,-500.0,0.00016698,2]
[347899024,1736189351411,-500.0,0.00016698,2]
[347899025,1736189351434,-500.0,0.00016698,2]
[347899026,1736189351459,-500.0,0.00016698,2]
[347899027,1736189351482,-500.0,0.00016698,2]
[347899028,1736189351504,-507.30890324,0.00016698,2]
[347899029,1736189351530,-500.0,0.00016698,2]
[347899030,1736189351553,-500.0,0.00016698,2]
[347899031,1736189351575,-500.0,0.00016698,2]
[347899032,1736189351599,-500.0,0.00016698,2]
[347899033,1736189351621,-500.0,0.00016698,2]
[347899034,1736189351644,-500.0,0.00016698,2]
[347899035,1736189351666,-500.0,0.00016698,2]
[347899036,1736189351689,-500.0,0.00016698,2]
[347899037,1736189351712,-500.0,0.00016698,2]
[347899038,1736189351735,-500.0,0.00016698,2]
[347899039,1736189351758,-500.0,0.00016698,2]
[347899040,1736189351782,-500.0,0.00016698,2]
[347899041,1736189351805,-500.0,0.00016698,2]
[347899042,1736189351828,-500.0,0.00016698,2]
[347899043,1736189351851,-500.0,0.00016698,2]
[347899044,1736189351872,-500.0,0.00016698,2]
[347899045,1736189351896,-500.0,0.00016698,2]
[347899046,1736189351921,-500.0,0.00016698,2]
[347899047,1736189351943,-500.0,0.00016698,2]
[347899048,1736189351965,-500.0,0.00016698,2]
[347899049,1736189351987,-500.0,0.00016698,2]
[347899050,1736189352010,-500.0,0.00016698,2]
[347899051,1736189352034,-500.0,0.00016698,2]
[347899052,1736189352056,-500.0,0.00016698,2]
[347899053,1736189352082,-331.56461909,0.00016698,2]
[347899054,1736189352107,-500.0,0.00016698,2]
[347899055,1736189352129,-500.0,0.00016698,2]
[347899056,1736189352153,-500.0,0.00016698,2]
[347899057,1736189352176,-500.0,0.00016698,2]
[347899058,1736189352199,-500.0,0.00016698,2]
[347899059,1736189352220,-500.0,0.00016698,2]
[347899060,1736189352242,-589.14852726,0.00016698,2]
[347899061,1736189352265,-500.0,0.00016698,2]
[347899062,1736189352291,-500.0,0.00016698,2]
[347899063,1736189352315,-500.0,0.00016698,2]
[347899064,1736189352338,-500.0,0.00016698,2]
[347899065,1736189352363,-500.0,0.00016698,2]
[347899066,1736189352386,-500.0,0.00016698,2]
[347899067,1736189352408,-500.0,0.00016698,2]
[347899068,1736189352431,-500.0,0.00016698,2]
[347899069,1736189352455,-500.0,0.00016698,2]
[347899070,1736189352478,-500.0,0.00016698,2]
[347899071,1736189352503,-500.0,0.00016698,2]
[347899072,1736189352528,-500.0,0.00016698,2]
[347899073,1736189352553,-602.06673178,0.00016698,2]
[347899074,1736189352578,-500.0,0.00016698,2]
[347899075,1736189352601,-500.0,0.00016698,2]
[347899077,1736189352626,-500.0,0.00016698,2]
[347899079,1736189352649,-500.0,0.00016698,2]
[347899081,1736189352673,-500.0,0.00016698,2]
[347899083,1736189352696,-500.0,0.00016698,2]
[347899085,1736189352719,-500.0,0.00016698,2]
[347899087,1736189352743,-500.0,0.00016698,2]
[347899089,1736189352767,-500.0,0.00016698,2]
[347899092,1736189352791,-500.0,0.00016698,2]
[347899094,1736189352814,-500.0,0.00016698,2]
[347899096,1736189352837,-500.0,0.00016698,2]
[347899098,1736189352860,-500.0,0.00016698,2]
[347899100,1736189352883,-500.0,0.00016698,2]
[347899102,1736189352905,-500.0,0.00016698,2]
[347899103,1736189352928,-500.0,0.00016698,2]
[347899104,1736189352951,-500.0,0.00016698,2]
[347899105,1736189352975,-500.0,0.00016698,2]
[347899106,1736189352997,-500.0,0.00016698,2]
[347899107,1736189353021,-500.0,0.00016698,2]
[347899108,1736189353044,-500.0,0.00016698,2]
[347899109,1736189353066,-500.0,0.00016698,2]
[347899110,1736189353089,-500.0,0.00016698,2]
[347899111,1736189353111,-500.0,0.00016698,2]
[347899112,1736189353134,-500.0,0.00016698,2]
[347899113,1736189353154,-500.0,0.00016698,2]
[347899114,1736189353175,-500.0,0.00016698,2]
[347899115,1736189353198,-500.0,0.00016698,2]
[347899116,1736189353219,-581.38695863,0.00016698,2]
[347899117,1736189353243,-500.0,0.00016698,2]
[347899118,1736189353266,-183.1564619,0.00016698,2]
[347899119,1736189353291,-500.0,0.00016698,2]
[347899120,1736189353312,-500.0,0.00016698,2]
[347899121,1736189353336,-500.0,0.00016698,2]
[347899122,1736189353363,-500.0,0.00016698,2]
[347899123,1736189353385,-500.0,0.00016698,2]
[347899124,1736189353409,-500.0,0.00016698,2]
[347899125,1736189353432,-500.0,0.00016698,2]
[347899126,1736189353454,-103.11200836,0.00016698,2]
[347899127,1736189353880,-396.88799164,0.00016698,2]
[347899128,1736189353904,-500.0,0.00016698,2]
[347899129,1736189353928,-500.0,0.00016698,2]
[347899130,1736189353952,-500.0,0.00016698,2]
[347899131,1736189353976,-500.0,0.00016698,2]
[347899132,1736189353999,-500.0,0.00016698,2]
[347899133,1736189354023,-500.0,0.00016698,2]
[347899134,1736189354046,-500.0,0.00016698,2]
[347899135,1736189354069,-500.0,0.00016698,2]
[347899136,1736189354092,-500.0,0.00016698,2]
[347899137,1736189354115,-500.0,0.00016698,2]
[347899138,1736189354137,-500.0,0.00016698,2]
[347899139,1736189354160,-500.0,0.00016698,2]
[347899140,1736189354184,-500.0,0.00016698,2]
[347899141,1736189354208,-500.0,0.00016698,2]
[347899142,1736189354231,-500.0,0.00016698,2]
[347899143,1736189354254,-500.0,0.00016698,2]
[347899144,1736189354280,-500.0,0.00016698,2]
[347899145,1736189354304,-500.0,0.00016698,2]
[347899146,1736189354330,-500.0,0.00016698,2]
[347899147,1736189354356,-500.0,0.00016698,2]
[347899148,1736189354381,-500.0,0.00016698,2]
[347899149,1736189354409,-500.0,0.00016698,2]
[347899150,1736189354434,-500.0,0.00016698,2]
[347899151,1736189354459,-500.0,0.00016698,2]
[347899152,1736189354482,-500.0,0.00016698,2]
[347899153,1736189354504,-172.1513688,0.00016699,2]
[347899154,1736189354528,-442.30392227,0.00016699,2]
[347899155,1736189354552,-43853.16147056,0.000167,2]
[347899156,1736189354575,-152.0,0.00016774,2]
[347899157,1736189354598,-500.0,0.00017033,2]
[347899158,1736189354619,-208.93722875,0.00017094,2]
[347899159,1736189354641,-193.0,0.00017152,2]
[347899160,1736189354662,-500.0,0.00017173,2]
[347899161,1736189354685,-24900.0,0.00017196,2]
[347899162,1736189354708,-500.0,0.000172,2]
[347899163,1736189354777,-245.0,0.00017538,2]
[347899164,1736189354799,-1006.10111846,0.00017581,2]
[347899165,1736189354820,-1005.29883538,0.00017721,2]
[347899166,1736189354840,-1000.0,0.00017748,2]
[347899167,1736189354862,-281.359202,0.00017992,2]
[347899168,1736189354883,-470.53476557,0.00018,2]
[347899399,1736189432174,-153.61,0.000186,2]
[347899401,1736189432186,-464.834,0.0001861,2]
[347899403,1736189432195,-195.22,0.00018722,2]
[347899405,1736189432205,-1000.0,0.0001875,2]
[347899407,1736189432214,-300.0,0.00018799,2]
[347899409,1736189432223,-6702.66971376,0.000188,2]
[347899411,1736189432232,-3281.60115614,0.000188,2]
[347899413,1736189432244,-673.17,0.000188,2]
[347899416,1736189432268,-2747.89855758,0.000188,2]
[347899419,1736189432278,-6702.66971372,0.000188,2]
[347899420,1736189432287,-6702.66971372,0.000188,2]
[347899422,1736189432301,-6702.66971372,0.000188,2]
[347899424,1736189432310,-6702.66971372,0.00018934,2]
[347899426,1736189432325,-50000.0,0.00019,5]
[347899428,1736189432335,-1000.0,0.00019,19]
[347899430,1736189432347,-195.0,0.0001901,2]
[347899432,1736189432357,-242.6,0.00019011,2]
[347899434,1736189432368,-12869.45794181,0.00019017,2]
[347899437,1736189432378,-32630.221011,0.00019078,2]
[347899439,1736189432388,-50000.0,0.000191,5]
[347899440,1736189432397,-6702.66971372,0.00019141,2]
[347899443,1736189432407,-1600.32474292,0.0001915,2]
[347899444,1736189432418,-500.0,0.00019173,2]
[347899447,1736189432428,-519.41922584,0.00019173,2]
[347899448,1736189432438,-192.36161449,0.00019173,2]
[347899450,1736189432447,-500.0,0.00019173,2]
[347899453,1736189432458,-151.03401587,0.00019173,2]
[347899455,1736189432468,-151.03401826,0.00019173,2]
[347899457,1736189432477,-500.0,0.00019173,2]
[347899459,1736189432486,-327.50950837,0.00019173,2]
[347899461,1736189432496,-611.25978824,0.00019173,2]
[347899463,1736189432506,-500.0,0.00019173,2]
[347899465,1736189432516,-216.0,0.00019173,2]
[347899467,1736189432526,-420.35154127,0.00019173,2]
[347899469,1736189432535,-500.0,0.00019173,2]
[347899471,1736189432545,-418.57873958,0.00019173,2]
[347899473,1736189432557,-220.25016947,0.00019173,2]
[347899475,1736189432571,-266.56003462,0.00019173,2]
[347899477,1736189432580,-151.03401826,0.00019173,2]
[347899479,1736189432590,-500.0,0.00019173,2]
[347899481,1736189432599,-500.0,0.00019173,2]
[347899483,1736189432609,-152.18243832,0.00019173,2]
[347899485,1736189432618,-152.02811609,0.00019173,2]
[347899487,1736189432628,-428.49887487,0.00019173,2]
[347899489,1736189432636,-160.03604585,0.00019173,2]
[347899491,1736189432646,-580.13444843,0.00019173,2]
[347899493,1736189432656,-500.0,0.00019178,2]
[347899495,1736189432665,-612.25442181,0.00019178,2]
[347899497,1736189432675,-500.0,0.00019178,2]
[347899499,1736189432685,-500.0,0.00019178,2]
[347899501,1736189432694,-500.0,0.00019178,2]
[347899503,1736189432703,-500.0,0.00019178,2]
[347899505,1736189432713,-500.0,0.00019178,2]
[347899507,1736189432722,-500.0,0.00019178,2]
[347899509,1736189432731,-500.0,0.00019178,2]
[347899511,1736189432741,-524.54,0.00019178,2]
[347899513,1736189432751,-500.0,0.00019178,2]
[347899515,1736189432760,-500.0,0.00019178,2]
[347899517,1736189432769,-244.75101834,0.00019178,2]
[347899519,1736189432779,-500.0,0.00019178,2]
[347899521,1736189432789,-500.0,0.00019178,2]
[347899523,1736189432798,-500.0,0.00019178,2]
[347899525,1736189432808,-500.0,0.00019178,2]
[347899527,1736189432819,-375.10133352,0.00019178,2]
[347899529,1736189432829,-500.0,0.00019178,2]
[347899531,1736189432839,-500.0,0.00019178,2]
[347899533,1736189432848,-500.0,0.00019178,2]
[347899535,1736189432858,-500.0,0.00019178,2]
[347899537,1736189432867,-500.0,0.00019178,2]
[347899539,1736189432877,-500.0,0.00019178,2]
[347899541,1736189432886,-500.0,0.00019178,2]
[347899543,1736189432895,-500.0,0.00019178,2]
[347899545,1736189432905,-500.0,0.00019178,2]
[347899546,1736189432914,-500.0,0.00019178,2]
[347899548,1736189432923,-500.0,0.00019178,2]
[347899549,1736189432933,-500.0,0.00019178,2]
[347899550,1736189432942,-500.0,0.00019178,2]
[347899551,1736189432951,-500.0,0.00019178,2]
[347899552,1736189432960,-500.0,0.00019178,2]
[347899553,1736189432969,-500.0,0.00019178,2]
[347899554,1736189432979,-500.0,0.00019178,2]
[347899555,1736189432987,-599.18149511,0.00019178,2]
[347899556,1736189432997,-500.0,0.00019178,2]
[347899557,1736189433006,-500.0,0.00019178,2]
[347899558,1736189433016,-500.0,0.00019178,2]
[347899559,1736189433026,-500.0,0.00019178,2]
[347899560,1736189433037,-500.0,0.00019178,2]
[347899561,1736189433046,-598.13,0.00019178,2]
[347899562,1736189433056,-500.0,0.00019178,2]
[347899563,1736189433068,-500.0,0.00019178,2]
[347899564,1736189433078,-500.0,0.00019178,2]
[347899565,1736189433087,-500.0,0.00019178,2]
[347899566,1736189433096,-500.0,0.00019178,2]
[347899567,1736189433106,-500.0,0.00019178,2]
[347899568,1736189433115,-500.0,0.00019178,2]
[347899569,1736189433125,-500.0,0.00019178,2]
[347899570,1736189433134,-500.0,0.00019178,2]
[347899571,1736189433143,-500.0,0.00019178,2]
[347899572,1736189433153,-500.0,0.00019178,2]
[347899573,1736189433162,-500.0,0.00019178,2]
[347899575,1736189433172,-500.0,0.00019178,2]
[347899577,1736189433182,-500.0,0.00019178,2]
[347899579,1736189433193,-500.0,0.00019178,2]
[347899581,1736189433203,-500.0,0.00019178,2]
[347899583,1736189433214,-500.0,0.00019178,2]
[347899585,1736189433224,-500.0,0.00019178,2]
[347899587,1736189433234,-646.2030332,0.00019178,2]
[347899589,1736189433244,-500.0,0.00019178,2]
[347899591,1736189433254,-500.0,0.00019178,2]
[347899593,1736189433263,-500.0,0.00019178,2]
[347899595,1736189433273,-500.0,0.00019178,2]
[347899597,1736189433282,-500.0,0.00019178,2]
[347899599,1736189433292,-500.0,0.00019178,2]
[347899601,1736189433306,-296.66027784,0.00019178,2]
[347899603,1736189433317,-871.36,0.00019178,2]
[347899605,1736189433327,-500.0,0.00019178,2]
[347899607,1736189433338,-500.0,0.00019178,2]
[347899609,1736189433349,-500.0,0.00019178,2]
[347899611,1736189433358,-500.0,0.00019178,2]
[347899613,1736189433369,-500.0,0.00019178,2]
[347899616,1736189433379,-500.0,0.00019178,2]
[347899618,1736189433389,-500.0,0.00019178,2]
[347899620,1736189433399,-500.0,0.00019178,2]
[347899622,1736189433408,-504.64988971,0.00019178,2]
[347899624,1736189433417,-500.0,0.00019178,2]
[347899626,1736189433427,-500.0,0.00019178,2]
[347899628,1736189433437,-500.0,0.00019178,2]
[347899630,1736189433447,-500.0,0.00019178,2]
[347899632,1736189433457,-500.0,0.00019178,2]
[347899633,1736189433467,-501.68200824,0.00019178,2]
[347899635,1736189433476,-500.0,0.00019178,2]
[347899637,1736189433486,-541.57,0.00019178,2]
[347899639,1736189433496,-555.87,0.00019178,2]
[347899641,1736189433506,-500.0,0.00019178,2]
[347899644,1736189433516,-500.0,0.00019178,2]
[347899645,1736189433526,-500.0,0.00019178,2]
[347899647,1736189433535,-500.0,0.00019178,2]
[347899649,1736189433545,-500.0,0.00019178,2]
[347899651,1736189433558,-500.0,0.00019178,2]
[347899653,1736189433570,-500.0,0.00019178,2]
[347899655,1736189433580,-500.0,0.00019178,2]
[347899657,1736189433589,-376.50667806,0.00019178,2]
[347899659,1736189433599,-500.0,0.00019178,2]
[347899661,1736189433609,-654.74,0.00019178,2]
[347899663,1736189433619,-500.0,0.00019178,2]
[347899665,1736189433629,-500.0,0.00019178,2]
[347899667,1736189433639,-606.4,0.00019178,2]
[347899669,1736189433650,-500.0,0.00019178,2]
[347899671,1736189433661,-500.0,0.00019178,2]
[347899673,1736189433670,-500.0,0.00019178,2]
[347899675,1736189433681,-500.0,0.00019178,2]
[347899677,1736189433692,-500.0,0.00019178,2]
[347899679,1736189433702,-500.0,0.00019178,2]
[347899681,1736189433713,-500.0,0.00019178,2]
[347899684,1736189433723,-500.0,0.00019178,2]
[347899686,1736189433733,-500.0,0.00019178,2]
[347899688,1736189433743,-500.0,0.00019178,2]
[347899690,1736189433754,-500.0,0.00019178,2]
[347899692,1736189433765,-500.0,0.00019178,2]
[347899694,1736189433774,-500.0,0.00019178,2]
[347899695,1736189433784,-500.0,0.00019178,2]
[347899698,1736189433795,-500.0,0.00019178,2]
[347899700,1736189433806,-500.0,0.00019178,2]
[347899702,1736189433817,-500.0,0.00019178,2]
[347899704,1736189433828,-500.0,0.00019178,2]
[347899706,1736189433838,-675.99,0.00019178,2]
[347899708,1736189433849,-500.0,0.00019178,2]
[347899710,1736189433859,-284.51823896,0.00019178,2]
[347899712,1736189433869,-500.0,0.00019178,2]
[347899714,1736189433878,-395.77394911,0.00019178,2]
[347899716,1736189433888,-500.0,0.00019178,2]
[347899718,1736189433898,-500.0,0.00019178,2]
[347899720,1736189433907,-500.0,0.00019178,2]
[347899722,1736189433917,-500.0,0.00019178,2]
[347899724,1736189433926,-500.0,0.00019178,2]
[347899726,1736189433935,-682.08,0.00019178,2]
[347899728,1736189433945,-500.0,0.00019178,2]
[347899730,1736189433955,-500.0,0.00019178,2]
[347899732,1736189433964,-1048.35,0.00019178,2]
[347899734,1736189433972,-500.0,0.00019178,2]
[347899736,1736189433982,-8251.54,0.00019178,2]
[347899738,1736189433992,-296.62983877,0.00019178,2]
[347899740,1736189434001,-500.0,0.00019178,2]
[347899742,1736189434011,-500.0,0.00019178,2]
[347899743,1736189434020,-615.32,0.00019178,2]
[347899746,1736189434030,-500.0,0.00019178,2]
[347899748,1736189434040,-500.0,0.00019178,2]
[347899750,1736189434050,-500.0,0.00019178,2]
[347899752,1736189434060,-500.0,0.00019178,2]
[347899754,1736189434072,-500.0,0.00019178,2]
[347899756,1736189434082,-500.0,0.00019178,2]
[347899757,1736189434091,-986.31,0.00019178,2]
[347899760,1736189434101,-500.0,0.00019178,2]
[347899762,1736189434111,-500.0,0.00019178,2]
[347899764,1736189434121,-500.0,0.00019178,2]
[347899766,1736189434132,-626.46,0.00019178,2]
[347899767,1736189434141,-627.23,0.00019178,2]
[347899769,1736189434151,-389.98483388,0.00019178,2]
[347899771,1736189434161,-500.0,0.00019178,2]
[347899773,1736189434170,-500.0,0.00019178,2]
[347899775,1736189434180,-500.0,0.00019178,2]
[347899777,1736189434190,-755.52,0.00019178,2]
[347899779,1736189434200,-500.0,0.00019178,2]
[347899782,1736189434210,-500.0,0.00019178,2]
[347899783,1736189434221,-500.0,0.00019178,2]
[347899786,1736189434231,-500.0,0.00019178,2]
[347899788,1736189434241,-500.0,0.00019178,2]
[347899790,1736189434251,-500.0,0.00019178,2]
[347899791,1736189434260,-501.63592278,0.00019178,2]
[347899794,1736189434270,-675.63,0.00019178,2]
[347899796,1736189434279,-500.0,0.00019178,2]
[347899797,1736189434289,-500.0,0.00019178,2]
[347899800,1736189434302,-500.0,0.00019178,2]
[347899802,1736189434312,-500.0,0.00019178,2]
[347899803,1736189434322,-500.0,0.00019178,2]
[347899806,1736189434332,-500.49800007,0.00019178,2]
[347899808,1736189434343,-1255.91,0.00019178,2]
[347899809,1736189434352,-1492.35,0.00019178,2]
[347899811,1736189434361,-500.0,0.00019178,2]
[347899813,1736189434371,-500.0,0.00019178,2]
[347899815,1736189434383,-500.0,0.00019178,2]
[347899818,1736189434393,-500.0,0.00019178,2]
[347899819,1736189434403,-500.0,0.00019178,2]
[347899821,1736189434413,-500.0,0.00019178,2]
[347899824,1736189434422,-335.88109999,0.00019178,2]
[347899825,1736189434432,-500.57704728,0.00019178,2]
[347899827,1736189434442,-501.41082214,0.00019178,2]
[347899829,1736189434451,-500.0,0.00019178,2]
[347899831,1736189434461,-500.0,0.00019178,2]
[347899834,1736189434472,-548.47,0.00019178,2]
[347899835,1736189434482,-500.0,0.00019178,2]
[347899837,1736189434491,-500.0,0.00019178,2]
[347899839,1736189434501,-500.0,0.00019178,2]
[347899841,1736189434511,-615.86,0.00019178,2]
[347899843,1736189434520,-500.0,0.00019178,2]
[347899845,1736189434530,-500.0,0.00019178,2]
[347899847,1736189434539,-500.0,0.00019178,2]
[347899849,1736189434549,-844.29,0.00019178,2]
[347899851,1736189434558,-757.93,0.00019178,2]
[347899853,1736189434571,-500.0,0.00019178,2]
[347899855,1736189434580,-502.81540685,0.00019178,2]
[347899857,1736189434593,-503.29604193,0.00019178,2]
[347899859,1736189434603,-500.0,0.00019178,2]
[347899861,1736189434612,-500.0,0.00019178,2]
[347899863,1736189434622,-1032.5,0.00019178,2]
[347899865,1736189434631,-1032.5,0.00019178,2]
[347899867,1736189434641,-1032.5,0.00019178,2]
[347899869,1736189434651,-1032.5,0.00019178,2]
[347899871,1736189434660,-845.55,0.00019178,2]
[347899873,1736189434670,-1032.5,0.00019178,2]
[347899875,1736189434680,-1032.5,0.00019178,2]
[347899877,1736189434689,-500.0,0.00019178,2]
[347899879,1736189434699,-1032.5,0.00019178,2]
[347899881,1736189434711,-1032.5,0.00019178,2]
[347899883,1736189434720,-500.0,0.00019178,2]